[Event "Dalheimers Hus Rapid Open"]
[Site "Dalheimers Hus, Slottsskogsgatan 12, Gothenburg, Sweden"]
[Date "2024.04.14"]
[Round "7.5"]
[White "Cramling, Pia"]
[Black "Aaberg, Anton"]
[Result "1/2-1/2"]
[TimeControl "15 minutes + 5 seconds per move from move one."]
[WhiteTitle "GM"]
[BlackTitle "IM"]
[WhiteFideId "1700030"]
[BlackFideId "1701991"]
[WhiteElo "2377"]
[BlackElo "2346"]

1. d4 {[%clk 00:15:09]} d6 {[%clk 00:15:00]} {[%emt 00:00:11]} 2. Nf3 {[%clk
00:15:02]} {[%emt 00:00:10]} Nf6 {[%clk 00:14:52]} {[%emt 00:00:14]} 3. c4
{[%clk 00:15:03]} {[%emt 00:00:05]} g6 {[%clk 00:14:21]} {[%emt 00:00:36]} 4.
Nc3 {[%clk 00:15:02]} {[%emt 00:00:06]} Bg7 {[%clk 00:14:21]} {[%emt 00:00:04]}
5. e4 {[%clk 00:15:05]} {[%emt 00:00:01]} O-O {[%clk 00:14:17]} {[%emt
00:00:10]} 6. Be2 {[%clk 00:14:51]} {[%emt 00:00:19]} c5 {[%clk 00:13:53]}
{[%emt 00:00:29]} 7. h3 {[%clk 00:14:47]} {[%emt 00:00:08]} cxd4 {[%clk
00:13:23]} {[%emt 00:00:37]} 8. Nxd4 {[%clk 00:14:50]} {[%emt 00:00:02]} Nc6
{[%clk 00:13:26]} {[%emt 00:00:01]} 9. Be3 {[%clk 00:14:54]} {[%emt 00:00:01]}
Nxd4 {[%clk 00:12:19]} {[%emt 00:01:14]} 10. Bxd4 {[%clk 00:14:57]} {[%emt
00:00:01]} Be6 {[%clk 00:12:22]} {[%emt 00:00:01]} 11. O-O {[%clk 00:14:11]}
{[%emt 00:00:51]} Nd7 {[%clk 00:11:36]} {[%emt 00:00:52]} 12. Rc1 {[%clk
00:11:56]} {[%emt 00:02:20]} Bxd4 {[%clk 00:10:53]} {[%emt 00:00:49]} 13. Qxd4
{[%clk 00:11:59]} {[%emt 00:00:02]} Qb6 {[%clk 00:10:45]} {[%emt 00:00:13]} 14.
Qd2 {[%clk 00:11:56]} {[%emt 00:00:07]} Rfc8 {[%clk 00:09:54]} {[%emt
00:00:56]} 15. b3 {[%clk 00:11:59]} {[%emt 00:00:02]} Qa5 {[%clk 00:08:45]}
{[%emt 00:01:15]} 16. Qb2 {[%clk 00:11:12]} {[%emt 00:00:51]} a6 {[%clk
00:08:00]} {[%emt 00:00:50]} 17. Rfd1 {[%clk 00:07:56]} {[%emt 00:03:21]} Qe5
{[%clk 00:07:31]} {[%emt 00:00:34]} 18. Qd2 {[%clk 00:07:36]} {[%emt 00:00:24]}
g5 {[%clk 00:07:34]} {[%emt 00:00:03]} 19. Nd5 {[%clk 00:06:00]} {[%emt
00:01:41]} Bxd5 {[%clk 00:06:11]} {[%emt 00:01:28]} 20. Qxd5 {[%clk 00:05:31]}
{[%emt 00:00:34]} Qxd5 {[%clk 00:05:30]} {[%emt 00:00:46]} 21. Rxd5 {[%clk
00:05:32]} {[%emt 00:00:04]} Ne5 {[%clk 00:04:57]} {[%emt 00:00:37]} 22. g3
{[%clk 00:04:38]} {[%emt 00:01:00]} Rc6 {[%clk 00:04:30]} {[%emt 00:00:32]} 23.
Rcd1 {[%clk 00:03:37]} {[%emt 00:01:05]} h6 {[%clk 00:04:20]} {[%emt 00:00:17]}
24. f4 {[%clk 00:02:55]} {[%emt 00:00:47]} gxf4 {[%clk 00:04:22]} {[%emt
00:00:03]} 25. gxf4 {[%clk 00:02:59]} Ng6 {[%clk 00:04:26]} {[%emt 00:00:02]}
26. Rf1 {[%clk 00:02:53]} {[%emt 00:00:10]} Rc5 {[%clk 00:03:43]} {[%emt
00:00:49]} 27. Bg4 {[%clk 00:02:09]} {[%emt 00:00:48]} b5 {[%clk 00:03:31]}
{[%emt 00:00:18]} 28. Be2 {[%clk 00:01:44]} {[%emt 00:00:29]} b4 {[%clk
00:03:17]} {[%emt 00:00:19]} 29. Kh2 {[%clk 00:01:21]} {[%emt 00:00:28]} Kf8
{[%clk 00:03:11]} {[%emt 00:00:12]} 30. Kg3 {[%clk 00:01:24]} {[%emt 00:00:02]}
a5 {[%clk 00:02:28]} {[%emt 00:00:48]} 31. Rfd1 {[%clk 00:01:26]} {[%emt
00:00:01]} a4 {[%clk 00:02:13]} {[%emt 00:00:21]} 32. Rxc5 {[%clk 00:01:19]}
{[%emt 00:00:12]} dxc5 {[%clk 00:02:17]} 33. Rd5 {[%clk 00:01:21]} {[%emt
00:00:03]} axb3 {[%clk 00:02:20]} {[%emt 00:00:02]} 34. axb3 {[%clk 00:01:25]}
{[%emt 00:00:01]} e5 {[%clk 00:01:28]} {[%emt 00:00:57]} 35. fxe5 {[%clk
00:01:23]} {[%emt 00:00:07]} Ra3 {[%clk 00:01:23]} {[%emt 00:00:10]} 36. Bd1
{[%clk 00:01:26]} {[%emt 00:00:02]} Ra1 {[%clk 00:01:28]} 37. h4 {[%clk
00:01:20]} {[%emt 00:00:12]} Nxe5 {[%clk 00:01:24]} {[%emt 00:00:09]} 38. Rxe5
{[%clk 00:01:21]} {[%emt 00:00:03]} Rxd1 {[%clk 00:01:28]} {[%emt 00:00:02]} 39.
Rxc5 {[%clk 00:01:25]} {[%emt 00:00:01]} Rd3+ {[%clk 00:01:32]} 40. Kf4 {[%clk
00:01:28]} {[%emt 00:00:02]} Rxb3 {[%clk 00:01:35]} {[%emt 00:00:01]} 41. Rb5
{[%clk 00:01:21]} {[%emt 00:00:12]} Rh3 {[%clk 00:01:16]} {[%emt 00:00:24]} 42.
Rxb4 {[%clk 00:01:15]} {[%emt 00:00:11]} Rxh4+ {[%clk 00:01:20]} 43. Kf5 {[%clk
00:01:19]} {[%emt 00:00:01]} Rh1 {[%clk 00:01:20]} {[%emt 00:00:06]} 44. c5
{[%clk 00:01:14]} {[%emt 00:00:29]} 1/2-1/2

[Event "Dalheimers Hus Rapid Open"]
[Site "Dalheimers Hus, Slottsskogsgatan 12, Gothenburg, Sweden"]
[Date "2024.04.14"]
[Round "7.6"]
[White "Storme, Isak"]
[Black "Winsnes, Rikard"]
[Result "1-0"]
[TimeControl "15 minutes + 5 seconds per move from move one."]
[WhiteTitle "IM"]
[BlackTitle "IM"]
[WhiteFideId "1728113"]
[BlackFideId "1700430"]
[WhiteElo "2352"]
[BlackElo "2352"]

1. d4 {[%clk 00:15:08]} {[%emt 00:00:02]} Nf6 {[%clk 00:15:05]} {[%emt
00:00:05]} 2. c4 {[%clk 00:15:11]} {[%emt 00:00:02]} g6 {[%clk 00:15:05]}
{[%emt 00:00:05]} 3. Nf3 {[%clk 00:15:02]} {[%emt 00:00:14]} Bg7 {[%clk
00:14:56]} {[%emt 00:00:14]} 4. g3 {[%clk 00:14:57]} {[%emt 00:00:10]} O-O
{[%clk 00:14:34]} {[%emt 00:00:27]} 5. Bg2 {[%clk 00:15:00]} {[%emt 00:00:02]}
d6 {[%clk 00:14:05]} {[%emt 00:00:34]} 6. O-O {[%clk 00:14:55]} {[%emt
00:00:10]} Nc6 {[%clk 00:14:08]} {[%emt 00:00:02]} 7. Nc3 {[%clk 00:14:52]}
{[%emt 00:00:08]} Bf5 {[%clk 00:13:27]} {[%emt 00:00:46]} 8. Nh4 {[%clk
00:12:57]} {[%emt 00:02:00]} Bd7 {[%clk 00:12:55]} {[%emt 00:00:36]} 9. b3
{[%clk 00:12:51]} {[%emt 00:00:12]} Qc8 {[%clk 00:11:52]} {[%emt 00:01:08]} 10.
Bb2 {[%clk 00:12:47]} {[%emt 00:00:08]} Bh3 {[%clk 00:11:42]} {[%emt 00:00:16]}
11. d5 {[%clk 00:12:06]} {[%emt 00:00:47]} Bxg2 {[%clk 00:10:41]} {[%emt
00:01:05]} 12. Kxg2 {[%clk 00:12:07]} {[%emt 00:00:04]} Na5 {[%clk 00:06:41]}
{[%emt 00:04:06]} 13. Qd3 {[%clk 00:11:33]} {[%emt 00:00:37]} c5 {[%clk
00:06:30]} {[%emt 00:00:17]} 14. e4 {[%clk 00:11:21]} {[%emt 00:00:17]} a6
{[%clk 00:06:15]} {[%emt 00:00:20]} 15. f4 {[%clk 00:09:40]} {[%emt 00:01:46]}
Rb8 {[%clk 00:05:34]} {[%emt 00:00:45]} 16. Rae1 {[%clk 00:07:54]} {[%emt
00:01:51]} b5 {[%clk 00:05:30]} {[%emt 00:00:10]} 17. cxb5 {[%clk 00:07:53]}
{[%emt 00:00:06]} axb5 {[%clk 00:05:34]} {[%emt 00:00:01]} 18. e5 {[%clk
00:07:29]} {[%emt 00:00:29]} dxe5 {[%clk 00:05:09]} {[%emt 00:00:30]} 19. fxe5
{[%clk 00:07:30]} {[%emt 00:00:04]} Ng4 {[%clk 00:05:08]} {[%emt 00:00:06]} 20.
Nf3 {[%clk 00:04:17]} {[%emt 00:03:19]} c4 {[%clk 00:04:59]} {[%emt 00:00:14]}
21. Qe4 {[%clk 00:03:31]} {[%emt 00:00:50]} cxb3 {[%clk 00:04:26]} {[%emt
00:00:38]} 22. axb3 {[%clk 00:02:42]} {[%emt 00:00:54]} Nxb3 {[%clk 00:03:45]}
{[%emt 00:00:47]} 23. d6 {[%clk 00:02:24]} {[%emt 00:00:23]} Nc5 {[%clk
00:03:25]} {[%emt 00:00:25]} 24. Nd5 {[%clk 00:01:46]} {[%emt 00:00:42]} Re8
{[%clk 00:01:44]} {[%emt 00:01:46]} 25. Qc2 {[%clk 00:01:18]} {[%emt 00:00:34]}
exd6 {[%clk 00:01:20]} {[%emt 00:00:28]} 26. exd6 {[%clk 00:01:05]} {[%emt
00:00:18]} Bxb2 {[%clk 00:00:25]} {[%emt 00:01:00]} 27. Ne7+ {[%clk 00:01:02]}
{[%emt 00:00:09]} Rxe7 {[%clk 00:00:22]} {[%emt 00:00:07]} 28. dxe7 {[%clk
00:01:04]} {[%emt 00:00:03]} Ne6 {[%clk 00:00:23]} {[%emt 00:00:05]} 29. Qxb2
{[%clk 00:00:59]} {[%emt 00:00:09]} Qc5 {[%clk 00:00:27]} 30. Qe2 {[%clk
00:00:08]} {[%emt 00:00:56]} Qxe7 {[%clk 00:00:14]} {[%emt 00:00:18]} 31. h3
{[%clk 00:00:12]} {[%emt 00:00:01]} Nf6 {[%clk 00:00:18]} {[%emt 00:00:01]} 32.
Ne5 {[%clk 00:00:15]} {[%emt 00:00:02]} b4 {[%clk 00:00:18]} {[%emt 00:00:05]}
33. Kh2 {[%clk 00:00:17]} {[%emt 00:00:02]} b3 {[%clk 00:00:23]} 34. Nc6 {[%clk
00:00:20]} {[%emt 00:00:03]} Qb7 {[%clk 00:00:23]} {[%emt 00:00:04]} 35. Nxb8
{[%clk 00:00:22]} {[%emt 00:00:03]} Qxb8 {[%clk 00:00:27]} 36. Rxf6 {[%clk
00:00:18]} {[%emt 00:00:08]} b2 {[%clk 00:00:30]} {[%emt 00:00:02]} 37. Rff1
{[%clk 00:00:07]} {[%emt 00:00:17]} Qc8 {[%clk 00:00:24]} {[%emt 00:00:12]} 38.
Rb1 {[%clk 00:00:10]} {[%emt 00:00:01]} Ng5 {[%clk 00:00:28]} 39. Qg2 {[%clk
00:00:12]} {[%emt 00:00:03]} Qc3 {[%clk 00:00:31]} {[%emt 00:00:02]} 40. Rxb2
{[%clk 00:00:15]} {[%emt 00:00:03]} h5 {[%clk 00:00:35]} 41. Rbf2 {[%clk
00:00:18]} {[%emt 00:00:01]} h4 {[%clk 00:00:39]} 42. gxh4 {[%clk 00:00:20]}
{[%emt 00:00:03]} Qc7+ {[%clk 00:00:43]} 43. Qg3 {[%clk 00:00:22]} {[%emt
00:00:03]} 1-0

[Event "Dalheimers Hus Rapid Open"]
[Site "Dalheimers Hus, Slottsskogsgatan 12, Gothenburg, Sweden"]
[Date "2024.04.14"]
[Round "7.7"]
[White "Brzezinski, Adam"]
[Black "Rydstrom, Tom"]
[Result "1/2-1/2"]
[TimeControl "15 minutes + 5 seconds per move from move one."]
[BlackTitle "FM"]
[WhiteFideId "1710460"]
[BlackFideId "1714830"]
[WhiteElo "2111"]
[BlackElo "2313"]

1. d4 {[%clk 00:15:05]} {[%emt 00:00:05]} Nf6 {[%clk 00:15:09]} {[%emt
00:00:02]} 2. Bg5 {[%clk 00:15:09]} {[%emt 00:00:01]} d5 {[%clk 00:15:03]}
{[%emt 00:00:11]} 3. e3 {[%clk 00:15:05]} {[%emt 00:00:09]} Ne4 {[%clk
00:14:07]} {[%emt 00:01:01]} 4. Bf4 {[%clk 00:15:07]} {[%emt 00:00:01]} c5
{[%clk 00:13:50]} {[%emt 00:00:23]} 5. Nd2 {[%clk 00:15:10]} {[%emt 00:00:02]}
Nxd2 {[%clk 00:13:43]} {[%emt 00:00:12]} 6. Qxd2 {[%clk 00:15:13]} {[%emt
00:00:02]} cxd4 {[%clk 00:13:39]} {[%emt 00:00:09]} 7. exd4 {[%clk 00:14:56]}
{[%emt 00:00:22]} Nc6 {[%clk 00:13:42]} {[%emt 00:00:02]} 8. Nf3 {[%clk
00:14:43]} {[%emt 00:00:19]} Bf5 {[%clk 00:13:43]} {[%emt 00:00:04]} 9. c3
{[%clk 00:14:10]} {[%emt 00:00:37]} e6 {[%clk 00:13:33]} {[%emt 00:00:16]} 10.
Bd3 {[%clk 00:14:05]} {[%emt 00:00:09]} Bxd3 {[%clk 00:13:36]} {[%emt
00:00:03]} 11. Qxd3 {[%clk 00:14:09]} Be7 {[%clk 00:13:13]} {[%emt 00:00:29]}
12. O-O {[%clk 00:14:08]} {[%emt 00:00:05]} O-O {[%clk 00:13:11]} {[%emt
00:00:07]} 13. Rfe1 {[%clk 00:14:04]} {[%emt 00:00:09]} Rc8 {[%clk 00:13:09]}
{[%emt 00:00:07]} 14. Ne5 {[%clk 00:13:27]} {[%emt 00:00:42]} Nxe5 {[%clk
00:11:09]} {[%emt 00:02:04]} 15. Bxe5 {[%clk 00:13:28]} {[%emt 00:00:04]} Bd6
{[%clk 00:10:22]} {[%emt 00:00:52]} 16. Qg3 {[%clk 00:12:51]} {[%emt 00:00:43]}
Bxe5 {[%clk 00:10:24]} {[%emt 00:00:02]} 17. Rxe5 {[%clk 00:12:55]} {[%emt
00:00:02]} b5 {[%clk 00:10:14]} {[%emt 00:00:15]} 18. a3 {[%clk 00:12:55]}
{[%emt 00:00:06]} a5 {[%clk 00:10:11]} {[%emt 00:00:07]} 19. Rg5 {[%clk
00:12:44]} {[%emt 00:00:16]} g6 {[%clk 00:09:26]} {[%emt 00:00:50]} 20. h4
{[%clk 00:12:44]} {[%emt 00:00:05]} b4 {[%clk 00:08:34]} {[%emt 00:00:57]} 21.
axb4 {[%clk 00:12:23]} {[%emt 00:00:26]} axb4 {[%clk 00:08:38]} 22. h5 {[%clk
00:12:24]} {[%emt 00:00:04]} bxc3 {[%clk 00:06:17]} {[%emt 00:02:26]} 23. hxg6
{[%clk 00:06:59]} {[%emt 00:05:30]} cxb2 {[%clk 00:06:21]} 24. gxf7+ {[%clk
00:04:31]} {[%emt 00:02:34]} Kxf7 {[%clk 00:06:25]} 25. Qf3+ {[%clk 00:04:10]}
{[%emt 00:00:26]} Ke8 {[%clk 00:02:41]} {[%emt 00:03:48]} 26. Qh5+ {[%clk
00:03:56]} {[%emt 00:00:19]} Kd7 {[%clk 00:01:51]} {[%emt 00:00:55]} 27. Rxd5+
{[%clk 00:01:51]} {[%emt 00:02:09]} exd5 {[%clk 00:01:55]} {[%emt 00:00:02]} 28.
Qxd5+ {[%clk 00:01:55]} Ke7 {[%clk 00:01:47]} {[%emt 00:00:13]} 29. Ra7+ {[%clk
00:00:43]} {[%emt 00:01:17]} Rc7 {[%clk 00:01:36]} {[%emt 00:00:16]} 30. Qe5+
{[%clk 00:00:44]} {[%emt 00:00:04]} Kd7 {[%clk 00:01:35]} {[%emt 00:00:06]} 31.
Qd5+ {[%clk 00:00:46]} {[%emt 00:00:02]} Ke7 {[%clk 00:01:39]} {[%emt
00:00:01]} 32. Qe5+ {[%clk 00:00:51]} Kd7 {[%clk 00:01:33]} {[%emt 00:00:12]}
1/2-1/2

[Event "Dalheimers Hus Rapid Open"]
[Site "Dalheimers Hus, Slottsskogsgatan 12, Gothenburg, Sweden"]
[Date "2024.04.14"]
[Round "7.8"]
[White "Andreasson, Ingvar"]
[Black "Robertsson, Klas"]
[Result "1-0"]
[TimeControl "15 minutes + 5 seconds per move from move one."]
[WhiteFideId "1700294"]
[BlackFideId "1737821"]
[WhiteElo "2323"]
[BlackElo "1919"]

1. d4 {[%clk 00:15:07]} {[%emt 00:00:02]} b6 {[%clk 00:15:09]} {[%emt
00:00:02]} 2. Nf3 {[%clk 00:14:51]} {[%emt 00:00:21]} Bb7 {[%clk 00:15:12]}
{[%emt 00:00:02]} 3. Bf4 {[%clk 00:14:54]} {[%emt 00:00:02]} e6 {[%clk
00:15:10]} {[%emt 00:00:07]} 4. e3 {[%clk 00:14:57]} {[%emt 00:00:01]} h6
{[%clk 00:15:09]} {[%emt 00:00:07]} 5. Nbd2 {[%clk 00:14:50]} {[%emt 00:00:13]}
d6 {[%clk 00:15:06]} {[%emt 00:00:08]} 6. a4 {[%clk 00:14:31]} {[%emt
00:00:23]} Nd7 {[%clk 00:14:49]} {[%emt 00:00:21]} 7. a5 {[%clk 00:14:25]}
{[%emt 00:00:12]} Rb8 {[%clk 00:14:38]} {[%emt 00:00:16]} 8. h3 {[%clk
00:12:36]} {[%emt 00:01:53]} Ngf6 {[%clk 00:14:41]} {[%emt 00:00:03]} 9. Bd3
{[%clk 00:12:25]} {[%emt 00:00:16]} Nd5 {[%clk 00:14:12]} {[%emt 00:00:34]} 10.
Bh2 {[%clk 00:12:23]} {[%emt 00:00:07]} Nb4 {[%clk 00:13:45]} {[%emt 00:00:33]}
11. Be2 {[%clk 00:12:23]} {[%emt 00:00:04]} g5 {[%clk 00:13:09]} {[%emt
00:00:41]} 12. c3 {[%clk 00:12:18]} {[%emt 00:00:10]} Nd5 {[%clk 00:12:49]}
{[%emt 00:00:25]} 13. axb6 {[%clk 00:11:38]} {[%emt 00:00:45]} axb6 {[%clk
00:12:52]} {[%emt 00:00:02]} 14. Qb3 {[%clk 00:10:31]} {[%emt 00:01:12]} Bg7
{[%clk 00:12:26]} {[%emt 00:00:31]} 15. O-O {[%clk 00:09:57]} {[%emt 00:00:39]}
N5f6 {[%clk 00:11:39]} {[%emt 00:00:53]} 16. Ne1 {[%clk 00:08:29]} {[%emt
00:01:33]} O-O {[%clk 00:11:40]} {[%emt 00:00:05]} 17. Bf3 {[%clk 00:08:26]}
{[%emt 00:00:08]} d5 {[%clk 00:11:29]} {[%emt 00:00:16]} 18. Qc2 {[%clk
00:07:37]} {[%emt 00:00:53]} Ra8 {[%clk 00:10:59]} {[%emt 00:00:35]} 19. Rxa8
{[%clk 00:07:31]} {[%emt 00:00:12]} Qxa8 {[%clk 00:11:03]} {[%emt 00:00:01]} 20.
Bxc7 {[%clk 00:07:26]} {[%emt 00:00:10]} Ne4 {[%clk 00:08:51]} {[%emt
00:02:17]} 21. Nd3 {[%clk 00:07:21]} {[%emt 00:00:09]} Ndf6 {[%clk 00:08:34]}
{[%emt 00:00:22]} 22. Nb3 {[%clk 00:06:47]} {[%emt 00:00:38]} h5 {[%clk
00:08:13]} {[%emt 00:00:27]} 23. Be2 {[%clk 00:05:52]} {[%emt 00:00:59]} g4
{[%clk 00:08:10]} {[%emt 00:00:09]} 24. f3 {[%clk 00:05:32]} {[%emt 00:00:25]}
Ng3 {[%clk 00:08:14]} {[%emt 00:00:02]} 25. Bxg3 {[%clk 00:05:34]} {[%emt
00:00:03]} gxh3 {[%clk 00:08:17]} {[%emt 00:00:02]} 26. gxh3 {[%clk 00:05:38]}
{[%emt 00:00:02]} Bh6 {[%clk 00:08:14]} {[%emt 00:00:07]} 27. Kf2 {[%clk
00:04:31]} {[%emt 00:01:12]} Qd8 {[%clk 00:07:35]} {[%emt 00:00:44]} 28. Rg1
{[%clk 00:04:28]} {[%emt 00:00:08]} Kh7 {[%clk 00:06:25]} {[%emt 00:01:16]} 29.
Ndc5+ {[%clk 00:04:24]} {[%emt 00:00:08]} Ne4+ {[%clk 00:06:18]} {[%emt
00:00:12]} 30. fxe4 {[%clk 00:03:02]} {[%emt 00:01:27]} bxc5 {[%clk 00:06:09]}
{[%emt 00:00:14]} 31. Nxc5 {[%clk 00:03:04]} {[%emt 00:00:03]} f5 {[%clk
00:05:18]} {[%emt 00:00:56]} 32. Nxe6 {[%clk 00:02:56]} {[%emt 00:00:13]} fxe4+
{[%clk 00:05:02]} {[%emt 00:00:21]} 33. Kg2 {[%clk 00:02:50]} {[%emt 00:00:10]}
1-0

[Event "Dalheimers Hus Rapid Open"]
[Site "Dalheimers Hus, Slottsskogsgatan 12, Gothenburg, Sweden"]
[Date "2024.04.14"]
[Round "7.9"]
[White "Thern, Alfred"]
[Black "Ulff, Johan"]
[Result "0-1"]
[TimeControl "15 minutes + 5 seconds per move from move one."]
[WhiteFideId "1775227"]
[BlackFideId "1733893"]
[WhiteElo "1795"]
[BlackElo "2123"]

1. e4 {[%clk 00:15:02]} {[%emt 00:00:07]} Nc6 {[%clk 00:15:09]} {[%emt
00:00:02]} 2. d4 {[%clk 00:14:59]} {[%emt 00:00:08]} d5 {[%clk 00:15:13]}
{[%emt 00:00:02]} 3. e5 {[%clk 00:14:53]} {[%emt 00:00:10]} f6 {[%clk
00:15:16]} {[%emt 00:00:02]} 4. exf6 {[%clk 00:14:43]} {[%emt 00:00:14]} Nxf6
{[%clk 00:15:20]} {[%emt 00:00:02]} 5. Nf3 {[%clk 00:14:37]} {[%emt 00:00:11]}
Bg4 {[%clk 00:15:15]} {[%emt 00:00:10]} 6. Be2 {[%clk 00:14:26]} {[%emt
00:00:16]} Qd6 {[%clk 00:14:06]} {[%emt 00:01:14]} 7. O-O {[%clk 00:14:01]}
{[%emt 00:00:30]} O-O-O {[%clk 00:13:48]} {[%emt 00:00:23]} 8. c3 {[%clk
00:13:52]} {[%emt 00:00:13]} h5 {[%clk 00:13:40]} {[%emt 00:00:14]} 9. Re1
{[%clk 00:12:46]} {[%emt 00:01:10]} Bxf3 {[%clk 00:12:48]} {[%emt 00:00:58]} 10.
Bxf3 {[%clk 00:12:44]} {[%emt 00:00:07]} e5 {[%clk 00:12:52]} 11. g3 {[%clk
00:12:07]} {[%emt 00:00:42]} e4 {[%clk 00:12:45]} {[%emt 00:00:12]} 12. Bf4
{[%clk 00:11:58]} {[%emt 00:00:14]} Qd7 {[%clk 00:12:30]} {[%emt 00:00:20]} 13.
Bg2 {[%clk 00:11:41]} {[%emt 00:00:21]} Bd6 {[%clk 00:12:27]} {[%emt 00:00:08]}
14. Bg5 {[%clk 00:10:48]} {[%emt 00:00:58]} Qf5 {[%clk 00:11:53]} {[%emt
00:00:40]} 15. Bxf6 {[%clk 00:10:04]} {[%emt 00:00:49]} gxf6 {[%clk 00:11:36]}
{[%emt 00:00:21]} 16. h4 {[%clk 00:09:45]} {[%emt 00:00:25]} Qg6 {[%clk
00:11:03]} {[%emt 00:00:38]} 17. c4 {[%clk 00:09:10]} {[%emt 00:00:41]} f5
{[%clk 00:10:55]} {[%emt 00:00:12]} 18. c5 {[%clk 00:08:31]} {[%emt 00:00:44]}
Be7 {[%clk 00:10:58]} {[%emt 00:00:01]} 19. Qd2 {[%clk 00:07:57]} {[%emt
00:00:39]} Bxh4 {[%clk 00:10:45]} {[%emt 00:00:18]} 20. b4 {[%clk 00:07:32]}
{[%emt 00:00:30]} Bf6 {[%clk 00:10:49]} {[%emt 00:00:02]} 21. Nc3 {[%clk
00:06:33]} {[%emt 00:01:04]} Nxd4 {[%clk 00:10:37]} {[%emt 00:00:17]} 22. b5
{[%clk 00:06:14]} {[%emt 00:00:24]} h4 {[%clk 00:09:45]} {[%emt 00:00:57]} 23.
Re3 {[%clk 00:05:59]} {[%emt 00:00:20]} h3 {[%clk 00:08:33]} {[%emt 00:01:17]}
24. Bf1 {[%clk 00:05:11]} {[%emt 00:00:53]} f4 {[%clk 00:08:32]} {[%emt
00:00:05]} 0-1

[Event "Dalheimers Hus Rapid Open"]
[Site "Dalheimers Hus, Slottsskogsgatan 12, Gothenburg, Sweden"]
[Date "2024.04.14"]
[Round "7.10"]
[White "Borvander, Tom"]
[Black "Karlsson, Stefan"]
[Result "0-1"]
[TimeControl "15 minutes + 5 seconds per move from move one."]
[WhiteFideId "1707388"]
[BlackFideId "1771183"]
[WhiteElo "2081"]
[BlackElo "1867"]

1. d4 {[%clk 00:15:09]} Nf6 {[%clk 00:15:08]} {[%emt 00:00:03]} 2. c4 {[%clk
00:15:08]} {[%emt 00:00:06]} g6 {[%clk 00:15:11]} {[%emt 00:00:02]} 3. Nc3
{[%clk 00:15:11]} {[%emt 00:00:02]} Bg7 {[%clk 00:15:14]} {[%emt 00:00:02]} 4.
Nf3 {[%clk 00:15:14]} {[%emt 00:00:02]} O-O {[%clk 00:15:17]} {[%emt 00:00:02]}
5. e4 {[%clk 00:15:09]} {[%emt 00:00:09]} d6 {[%clk 00:15:21]} {[%emt
00:00:02]} 6. Be2 {[%clk 00:15:12]} {[%emt 00:00:02]} e5 {[%clk 00:15:24]}
{[%emt 00:00:02]} 7. O-O {[%clk 00:15:08]} {[%emt 00:00:09]} Bg4 {[%clk
00:15:19]} {[%emt 00:00:10]} 8. Be3 {[%clk 00:14:12]} {[%emt 00:01:01]} Bxf3
{[%clk 00:15:22]} {[%emt 00:00:03]} 9. Bxf3 {[%clk 00:14:15]} {[%emt 00:00:02]}
exd4 {[%clk 00:15:26]} 10. Bxd4 {[%clk 00:14:17]} {[%emt 00:00:03]} Nc6 {[%clk
00:15:30]} {[%emt 00:00:01]} 11. Be3 {[%clk 00:14:12]} {[%emt 00:00:10]} Nd7
{[%clk 00:10:58]} {[%emt 00:04:37]} 12. Qd2 {[%clk 00:14:05]} {[%emt 00:00:12]}
Re8 {[%clk 00:10:49]} {[%emt 00:00:14]} 13. Rad1 {[%clk 00:13:48]} {[%emt
00:00:22]} Bxc3 {[%clk 00:10:25]} {[%emt 00:00:28]} 14. Qxc3 {[%clk 00:13:44]}
{[%emt 00:00:10]} Qf6 {[%clk 00:10:29]} {[%emt 00:00:02]} 15. Qd2 {[%clk
00:13:18]} {[%emt 00:00:30]} Nc5 {[%clk 00:10:09]} {[%emt 00:00:24]} 16. Bg5
{[%clk 00:13:01]} {[%emt 00:00:22]} Qg7 {[%clk 00:09:42]} {[%emt 00:00:32]} 17.
Rfe1 {[%clk 00:09:55]} {[%emt 00:03:12]} Ne5 {[%clk 00:09:29]} {[%emt
00:00:18]} 18. b4 {[%clk 00:08:37]} {[%emt 00:01:23]} Nxf3+ {[%clk 00:06:06]}
{[%emt 00:03:28]} 19. gxf3 {[%clk 00:08:40]} {[%emt 00:00:02]} Ne6 {[%clk
00:06:10]} {[%emt 00:00:02]} 20. Bh6 {[%clk 00:07:48]} {[%emt 00:00:56]} Qf6
{[%clk 00:05:40]} {[%emt 00:00:34]} 21. f4 {[%clk 00:07:42]} {[%emt 00:00:11]}
Qh4 {[%clk 00:05:35]} {[%emt 00:00:10]} 22. f5 {[%clk 00:07:38]} {[%emt
00:00:10]} Qg4+ {[%clk 00:04:45]} {[%emt 00:00:56]} 23. Kh1 {[%clk 00:07:33]}
{[%emt 00:00:09]} Qf3+ {[%clk 00:04:48]} {[%emt 00:00:02]} 24. Kg1 {[%clk
00:07:35]} {[%emt 00:00:02]} Qg4+ {[%clk 00:03:47]} {[%emt 00:01:06]} 25. Kh1
{[%clk 00:07:38]} {[%emt 00:00:02]} Ng7 {[%clk 00:02:46]} {[%emt 00:01:07]} 26.
fxg6 {[%clk 00:06:44]} {[%emt 00:00:59]} hxg6 {[%clk 00:02:28]} {[%emt
00:00:23]} 27. Qf4 {[%clk 00:05:26]} {[%emt 00:01:22]} Qe6 {[%clk 00:01:40]}
{[%emt 00:00:54]} 28. Qc1 {[%clk 00:04:12]} {[%emt 00:01:19]} Nh5 {[%clk
00:01:32]} {[%emt 00:00:13]} 29. Re3 {[%clk 00:02:57]} {[%emt 00:01:19]} a5
{[%clk 00:01:16]} {[%emt 00:00:21]} 30. b5 {[%clk 00:02:57]} {[%emt 00:00:05]}
Qg4 {[%clk 00:01:08]} {[%emt 00:00:13]} 31. Rg1 {[%clk 00:02:43]} {[%emt
00:00:19]} Qh4 {[%clk 00:01:12]} {[%emt 00:00:02]} 32. Qc2 {[%clk 00:02:10]}
{[%emt 00:00:37]} Re5 {[%clk 00:00:59]} {[%emt 00:00:18]} 33. Qe2 {[%clk
00:01:44]} {[%emt 00:00:32]} Rae8 {[%clk 00:00:54]} {[%emt 00:00:10]} 34. Rg4
{[%clk 00:01:42]} {[%emt 00:00:07]} Qe7 {[%clk 00:00:34]} {[%emt 00:00:24]} 35.
Bg5 {[%clk 00:01:36]} {[%emt 00:00:11]} Rxg5 {[%clk 00:00:38]} {[%emt
00:00:02]} 36. f4 {[%clk 00:01:19]} {[%emt 00:00:22]} Rxg4 {[%clk 00:00:40]}
{[%emt 00:00:03]} 37. Qxg4 {[%clk 00:01:22]} {[%emt 00:00:01]} Qe6 {[%clk
00:00:44]} 38. f5 {[%clk 00:01:18]} {[%emt 00:00:09]} Qxc4 {[%clk 00:00:41]}
{[%emt 00:00:09]} 39. Kg2 {[%clk 00:01:14]} {[%emt 00:00:09]} Nf6 {[%clk
00:00:38]} {[%emt 00:00:08]} 40. Qh4 {[%clk 00:01:14]} {[%emt 00:00:05]} Rxe4
{[%clk 00:00:37]} {[%emt 00:00:06]} 0-1